fUST/lending_fUST_20240318
["ID","MTS","AMOUNT","RATE_DAILY","PERIOD"]
[319425157,1710729042156,-988.63,0.00019997,2]
[319425158,1710729042165,-988.63,0.00019997,2]
[319425159,1710729042175,-500.0,0.00019997,2]
[319425160,1710729042184,-500.0,0.00019997,2]
[319425161,1710729042193,-500.0,0.00019997,2]
[319425162,1710729042203,-500.0,0.00019997,2]
[319425163,1710729042212,-500.0,0.00019997,2]
[319425164,1710729042221,-501.55313835,0.00019997,2]
[319425165,1710729042230,-500.0,0.00019997,2]
[319425166,1710729042240,-500.0,0.00019997,2]
[319425167,1710729042249,-500.0,0.00019997,2]
[319425168,1710729042258,-500.0,0.00019997,2]
[319425169,1710729042268,-234.52293536,0.00019997,2]
[319425170,1710729042277,-81903.16676316,0.00019998,2]
[319425182,1710729043599,-500.0,0.00019996,2]
[319425183,1710729043609,-500.0,0.00019996,2]
[319425184,1710729043618,-500.0,0.00019997,2]
[319425185,1710729043627,-446.24831746,0.00019997,2]
[319425186,1710729043644,-11603.75168254,0.00019998,2]
[319425187,1710729043660,-3221.82588032,0.00019998,2]
[319425188,1710729043670,-263.90144812,0.00019998,7]
[319425189,1710729043680,-505.64793432,0.00019998,2]
[319425190,1710729043689,-171.46905346,0.00019998,2]
[319425191,1710729043698,-524.87045782,0.00019998,2]
[319425192,1710729043708,-179.55517336,0.00019998,2]
[319425193,1710729043717,-282.16049091,0.00019998,2]
[319425194,1710729043726,-171.31171002,0.00019998,2]
[319425195,1710729043735,-323.32037499,0.00019998,2]
[319425196,1710729043745,-209.00523222,0.00019998,2]
[319425197,1710729043754,-191.28001406,0.00019998,2]
[319425198,1710729043765,-241.6886044,0.00019998,2]
[319425199,1710729043774,-177.94646362,0.00019998,2]
[319425200,1710729043784,-228.81482762,0.00019998,2]
[319425201,1710729043793,-283.1797749,0.00019998,2]
[319425202,1710729043802,-291.23721603,0.00019998,2]
[319425203,1710729043811,-404.74734681,0.00019998,2]
[319425204,1710729043820,-155.38729388,0.00019998,2]
[319425205,1710729043830,-165.8190204,0.00019998,2]
[319425206,1710729043839,-178.55477072,0.00019998,2]
[319425207,1710729043848,-228.28927288,0.00019998,2]
[319425208,1710729043858,-197.82027309,0.00019998,2]
[319425209,1710729043982,-3103.38299039,0.00019998,2]
[319425210,1710729043994,-155.27137124,0.00019998,2]
[319425211,1710729044004,-2607.2166624,0.00019998,2]
[319425212,1710729044014,-188.34226137,0.00019998,2]
[319425213,1710729044023,-1607.51480522,0.00019998,2]
[319425214,1710729044033,-3238.49836341,0.00019998,2]
[319425215,1710729044042,-878.44,0.00019998,2]
[319425216,1710729044051,-155.42464174,0.00019998,2]
[319425217,1710729044061,-593.89096691,0.00019998,2]
[319425218,1710729044073,-284.54903309,0.00019998,2]
[319425219,1710729044083,-156.27113872,0.00019998,2]
[319425220,1710729044092,-878.44,0.00019998,2]
[319425221,1710729044102,-878.44,0.00019998,2]
[319425222,1710729044111,-317.30671365,0.00019998,2]
[319425223,1710729044121,-271.12235416,0.00019998,2]
[319425224,1710729044130,-155.68105171,0.00019998,2]
[319425225,1710729044140,-185.14177974,0.00019998,2]
[319425226,1710729044149,-2036.04507903,0.00019998,2]
[319425227,1710729044158,-170.61670966,0.00019998,2]
[319425228,1710729044168,-494.11873463,0.00019998,2]
[319425229,1710729044177,-271.18018261,0.00019998,2]
[319425276,1710730232699,-525.12034606,0.0001861,2]
[319425277,1710730232709,-553.68965394,0.00018611,2]
[319425381,1710730243842,-3.81469663,0.00018611,2]
[319425382,1710730243910,-812.12,0.00018611,2]
[319425430,1710730936587,-1000.0,0.00021,30]
[319425570,1710731443009,-957.8448723,0.00018855,2]
[319425571,1710731443021,-250.0,0.00018855,2]
[319425572,1710731443031,-11294.91153823,0.00018883,2]
[319425842,1710732643222,-4802.74208925,0.00018755,2]
[319426001,1710733832362,-171.03857772,0.00018255,2]
[319426002,1710733832371,-628.49200848,0.00018256,2]
[319426003,1710733832381,-1608.41114111,0.00018291,2]
[319426004,1710733832390,-17243.9119495,0.00018301,2]
[319426005,1710733832399,-1508.438792,0.00018322,2]
[319426006,1710733832408,-6586.7553345,0.00018322,2]
[319426007,1710733832417,-150.00028805,0.00019,3]
[319426008,1710733832426,-158.441836,0.00019178,2]
[319426010,1710733832435,-158.5575756,0.00019178,2]
[319426011,1710733832443,-166.666666,0.00019178,2]
[319426013,1710733832452,-166.666666,0.00019627,2]
[319426015,1710733832461,-306.0,0.000197,2]
[319426016,1710733832469,-292.60995964,0.00019897,2]
[319426018,1710733832478,-227.49312401,0.00019898,2]
[319426019,1710733832487,-1272.26596857,0.0001998,10]
[319426021,1710733832496,-500.0,0.00019992,2]
[319426024,1710733832504,-500.0,0.00019992,2]
[319426026,1710733832514,-505.88769326,0.00019992,2]
[319426027,1710733832523,-315.82493701,0.00019992,2]
[319426030,1710733832532,-412.89235483,0.00019992,2]
[319426033,1710733832543,-198.45754074,0.00019992,2]
[319426035,1710733832552,-500.0,0.00019992,2]
[319426036,1710733832562,-500.0,0.00019992,2]
[319426037,1710733832571,-500.0,0.00019992,2]
[319426039,1710733832579,-626.87229468,0.00019992,2]
[319426041,1710733832588,-500.0,0.00019992,2]
[319426042,1710733832598,-500.0,0.00019992,2]
[319426045,1710733832607,-505.64793432,0.00019992,2]
[319426048,1710733832617,-500.0,0.00019992,2]
[319426051,1710733832626,-500.0,0.00019992,2]
[319426054,1710733832635,-798.89,0.00019992,2]
[319426055,1710733832645,-798.89,0.00019992,2]
[319426057,1710733832654,-500.0,0.00019992,2]
[319426059,1710733832664,-564.02331897,0.00019992,2]
[319426061,1710733832673,-842.77,0.00019992,2]
[319426063,1710733832682,-842.77,0.00019992,2]
[319426065,1710733832692,-500.0,0.00019992,2]
[319426067,1710733832701,-500.0,0.00019992,2]
[319426069,1710733832710,-500.0,0.00019992,2]
[319426071,1710733832719,-328.88566058,0.00019992,2]
[319426073,1710733832728,-500.0,0.00019992,2]
[319426075,1710733832737,-335.32578266,0.00019992,2]
[319426077,1710733832747,-500.0,0.00019992,2]
[319426079,1710733832756,-500.0,0.00019992,2]
[319426081,1710733832765,-500.0,0.00019992,2]
[319426082,1710733832774,-500.0,0.00019992,2]
[319426084,1710733832784,-500.0,0.00019992,2]
[319426086,1710733832793,-500.0,0.00019992,2]
[319426087,1710733832803,-500.0,0.00019992,2]
[319426088,1710733832813,-517.19147527,0.00019992,2]
[319426089,1710733832914,-500.0,0.00019992,2]
[319426090,1710733832924,-500.0,0.00019992,2]
[319426091,1710733832933,-500.0,0.00019992,2]
[319426092,1710733832942,-522.44365771,0.00019992,2]
[319426093,1710733832952,-4510.83,0.00019992,2]
[319426094,1710733832961,-4510.83,0.00019992,2]
[319426095,1710733832970,-500.0,0.00019992,2]
[319426096,1710733832979,-500.7612313,0.00019992,2]
[319426097,1710733832988,-500.0,0.00019992,2]
[319426098,1710733832998,-500.0,0.00019992,2]
[319426099,1710733833011,-981.78,0.00019992,2]
[319426100,1710733833022,-981.78,0.00019992,2]
[319426101,1710733833033,-500.0,0.00019992,2]
[319426102,1710733833042,-500.0,0.00019992,2]
[319426103,1710733833052,-741.47,0.00019992,2]
[319426104,1710733833062,-741.47,0.00019992,2]
[319426105,1710733833071,-500.0,0.00019992,2]
[319426106,1710733833080,-500.0,0.00019992,2]
[319426107,1710733833090,-500.0,0.00019992,2]
[319426108,1710733833099,-500.0,0.00019992,2]
[319426109,1710733833108,-518.93219178,0.00019992,2]
[319426110,1710733833117,-500.0,0.00019992,2]
[319426111,1710733833127,-266.22760745,0.00019992,2]
[319426112,1710733833140,-233.77239255,0.00019992,2]
[319426113,1710733833150,-500.0,0.00019992,2]
[319426114,1710733833159,-500.0,0.00019992,2]
[319426115,1710733833169,-155.35642146,0.00019993,2]
[319426116,1710733833178,-502.20946896,0.00019993,2]
[319426117,1710733833187,-500.0,0.00019993,2]
[319426118,1710733833197,-500.0,0.00019993,2]
[319426119,1710733833207,-500.0,0.00019993,2]
[319426120,1710733833217,-500.0,0.00019993,2]
[319426121,1710733833227,-500.0,0.00019993,2]
[319426122,1710733833236,-500.0,0.00019993,2]
[319426123,1710733833245,-500.0,0.00019993,2]
[319426124,1710733833254,-535.99948237,0.00019993,2]
[319426125,1710733833264,-503.63419139,0.00019993,2]
[319426126,1710733833273,-500.0,0.00019993,2]
[319426127,1710733833282,-501.07478568,0.00019993,2]
[319426128,1710733833293,-500.0,0.00019993,2]
[319426129,1710733833302,-500.0,0.00019993,2]
[319426130,1710733833311,-500.0,0.00019993,2]
[319426131,1710733833320,-319.31948979,0.00019993,2]
[319426132,1710733833329,-162.59534764,0.00019993,2]
[319426133,1710733833338,-500.0,0.00019993,2]
[319426134,1710733833348,-500.0,0.00019993,2]
[319426135,1710733833357,-500.0,0.00019993,2]
[319426136,1710733833366,-500.0,0.00019993,2]
[319426137,1710733833375,-381.67869199,0.00019993,2]
[319426138,1710733833384,-500.0,0.00019993,2]
[319426139,1710733833393,-500.0,0.00019993,2]
[319426140,1710733833402,-500.0,0.00019993,2]
[319426141,1710733833412,-500.0,0.00019993,2]
[319426142,1710733833422,-500.0,0.00019993,2]
[319426143,1710733833431,-500.70660734,0.00019993,2]
[319426144,1710733833441,-500.0,0.00019993,2]
[319426145,1710733833450,-467.18656586,0.00019993,2]
[319426146,1710733833459,-502.24963249,0.00019993,2]
[319426147,1710733833469,-310.83245234,0.00019993,2]
[319426148,1710733833478,-500.0,0.00019993,2]
[319426149,1710733833487,-500.0,0.00019993,2]
[319426150,1710733833496,-500.0,0.00019993,2]
[319426151,1710733833506,-500.0,0.00019993,2]
[319426152,1710733833516,-500.0,0.00019993,2]
[319426153,1710733833525,-500.0,0.00019993,2]
[319426154,1710733833534,-500.0,0.00019993,2]
[319426155,1710733833546,-500.0,0.00019993,2]
[319426156,1710733833555,-500.0,0.00019993,2]
[319426157,1710733833564,-504.86214845,0.00019993,2]
[319426158,1710733833574,-500.0,0.00019993,2]
[319426159,1710733833583,-500.0,0.00019993,2]
[319426160,1710733833593,-502.0884284,0.00019993,2]
[319426161,1710733833603,-503.7932228,0.00019993,2]
[319426162,1710733833612,-501.26057091,0.00019993,2]
[319426163,1710733833621,-500.0,0.00019993,2]
[319426164,1710733833631,-500.7685632,0.00019993,2]
[319426165,1710733833643,-500.0,0.00019993,2]
[319426166,1710733833652,-500.0,0.00019993,2]
[319426167,1710733833661,-502.08445517,0.00019993,2]
[319426168,1710733833670,-361.06283509,0.00019993,2]
[319426169,1710733833679,-500.0,0.00019993,2]
[319426170,1710733833688,-291.30044281,0.00019993,2]
[319426214,1710733838341,-912.04027655,0.000199,2]
[319426216,1710733838351,-208.69955719,0.00019993,2]
[319426218,1710733838361,-500.0,0.00019993,2]
[319426219,1710733838370,-500.0,0.00019993,2]
[319426221,1710733838380,-500.0,0.00019993,2]
[319426223,1710733838389,-500.0,0.00019993,2]
[319426224,1710733838399,-500.0,0.00019993,2]
[319426226,1710733838409,-500.0,0.00019993,2]
[319426227,1710733838418,-503.88853413,0.00019993,2]
[319426229,1710733838427,-595.67,0.00019993,2]
[319426231,1710733838437,-595.67,0.00019993,2]
[319426232,1710733838447,-500.0,0.00019993,2]
[319426234,1710733838456,-531.3779663,0.00019993,2]
[319426236,1710733838465,-500.0,0.00019993,2]
[319426237,1710733838474,-501.58186076,0.00019993,2]
[319426239,1710733838483,-483.47850922,0.00019993,2]
[319426240,1710733838492,-500.0,0.00019993,2]
[319426242,1710733838501,-500.0,0.00019993,2]
[319426244,1710733838510,-571.25875255,0.00019993,2]
[319426245,1710733838519,-505.35242514,0.00019993,2]
[319426247,1710733838528,-500.0,0.00019993,2]
[319426249,1710733838537,-500.0,0.00019993,2]
[319426250,1710733838547,-502.94734742,0.00019993,2]
[319426252,1710733838556,-500.0,0.00019993,2]
[319426254,1710733838565,-500.0,0.00019993,2]
[319426255,1710733838574,-500.0,0.00019993,2]
[319426257,1710733838584,-500.0,0.00019993,2]
[319426258,1710733838593,-506.47708507,0.00019993,2]
[319426260,1710733838602,-500.0,0.00019993,2]
[319426262,1710733838611,-500.0,0.00019993,2]
[319426263,1710733838620,-798.89,0.00019993,2]
[319426265,1710733838629,-500.0,0.00019993,2]
[319426267,1710733838638,-500.0,0.00019993,2]
[319426268,1710733838646,-2669.30189602,0.00019993,2]
[319426382,1710733843343,-409.05412226,0.00019993,2]
[319426383,1710733843402,-1432.47398172,0.00019993,2]
[319426384,1710733843412,-981.78,0.00019993,2]
[319426385,1710733843421,-348.45739296,0.00019993,2]
[319426386,1710733843431,-741.47,0.00019993,2]
[319426387,1710733843441,-500.0,0.00019993,2]
[319426388,1710733843450,-325.11748529,0.00019994,2]
[319426389,1710733843459,-500.0,0.00019994,2]
[319426390,1710733843468,-500.0,0.00019994,2]
[319426391,1710733843478,-500.0,0.00019994,2]
[319426392,1710733843487,-314.10607222,0.00019994,2]
[319426846,1710735043642,-158.441836,0.00019178,2]
[319426848,1710735043652,-166.666666,0.00019178,2]
[319426850,1710735043662,-2342.10446746,0.00019626,2]
[319426852,1710735043672,-166.666666,0.00019627,2]
[319426854,1710735043681,-1000.0,0.00019899,2]
[319426856,1710735043692,-86.11271248,0.000199,2]
[319438333,1710737437990,-322.32616077,0.00015744,2]
[319438335,1710737438001,-1203.78711514,0.00015745,2]
[319438337,1710737438014,-366.57493234,0.00015745,2]
[319438339,1710737438024,-71.11561944,0.00015745,2]
[319438415,1710737442771,-309.94117663,0.00015744,2]
[319438416,1710737442780,-1476.18794127,0.00015744,2]
[319438417,1710737442789,-191.77351514,0.00015744,2]
[319438418,1710737442798,-1068.16896696,0.00015744,2]
[319438419,1710737442941,-231.45460876,0.00015744,2]
[319438420,1710737442951,-405.00494432,0.00015744,2]
[319438421,1710737442960,-251.46020069,0.00015745,2]
[319438422,1710737442969,-850.2093926,0.00015746,3]
[319438423,1710737442979,-155.02790502,0.00015746,2]
[319438424,1710737442987,-2235.91792685,0.00015746,2]
[319438425,1710737443001,-989.39036897,0.00015746,2]
[319438426,1710737443010,-3502.87779948,0.00015746,2]
[319438427,1710737443020,-31.20078587,0.00015747,2]
[319438449,1710737495647,1191.8142601,0.0001501,2]
[319438450,1710737502862,3921.32943784,0.0001559,2]
[319438451,1710737520444,14799.7445929,0.00014743,2]
[319438452,1710737561801,19041.63810329,0.00014743,2]
[319438453,1710737565637,1608.41114111,0.00015572,2]
[319438454,1710737566074,2073.54097824,0.00014743,2]
[319438455,1710737566822,15966.63559072,0.00014743,2]
[319438456,1710737573624,864.95495814,0.00015571,2]
[319438457,1710737574872,-155.01395126,0.00015728,2]
[319438458,1710737574892,-184.82066082,0.00015728,2]
[319438459,1710737574911,-525.12034606,0.00015728,2]
[319438460,1710737574931,-155.01395126,0.00015728,2]
[319438461,1710737574950,-290.88316788,0.00015728,2]
[319438462,1710737574969,-1608.41114111,0.00015729,2]
[319438463,1710737574988,-525.12556596,0.00015729,2]
[319438464,1710737575007,-10805.61121565,0.00015729,2]
[319438465,1710737579470,639.58001666,0.0001557,2]
[319438466,1710737579880,3432.45447685,0.0001557,2]
[319438467,1710737580014,429.76227065,0.0001557,2]
[319438468,1710737581708,372.4097653,0.0001557,2]
[319438469,1710737581744,3343.29439976,0.00014743,2]
[319438470,1710737582832,15966.63559072,0.00014743,2]
[319438471,1710737584085,2073.54097824,0.00014743,2]
[319438472,1710737602827,5435.20034692,0.00014743,2]
[319438473,1710737604080,2073.54097824,0.00014743,2]
[319438474,1710737606698,250.0,0.00015154,2]
[319438475,1710737610024,24900.0,0.00015154,2]
[319438476,1710737628085,2073.54097824,0.00014743,2]
[319438478,1710737643169,-179.23795265,0.00015721,2]
[319438479,1710737643192,-212.30040266,0.00015721,2]
[319438480,1710737643214,-371.46164469,0.00015721,2]
[319438481,1710737652091,2073.54097824,0.00014743,2]
[319438482,1710737695477,3000.0,0.00015488,2]
[319438483,1710737710869,2297.86946,0.00015546,2]
[319438484,1710737782438,-171.03857772,0.00015707,2]
[319438485,1710737782459,-155.01395126,0.00015708,2]
[319438486,1710737782479,-172.63984513,0.00015708,2]
[319438487,1710737782499,-596.90631306,0.00015708,2]
[319438488,1710737782518,-901.16914859,0.00015708,2]
[319438489,1710737782538,-322.32616077,0.00015709,2]
[319438490,1710737782567,-156.15894384,0.00015709,2]
[319438491,1710737782592,-3148.79744482,0.00015709,2]
[319438492,1710737782613,-3225.30829582,0.0001571,2]
[319438493,1710737782634,-3502.87779948,0.0001571,2]
[319438494,1710737782654,-2601.08142185,0.0001571,2]
[319438495,1710737782676,-2744.63960965,0.00015711,2]
[319438496,1710737782697,-204.95556667,0.00015711,2]
[319438497,1710737782718,-280.87247282,0.00015711,2]
[319438498,1710737782739,-191.77351514,0.00015711,2]
[319438499,1710737782760,-581.16676106,0.00015712,2]
[319438500,1710737782780,-82.27417232,0.00015721,2]
[319438501,1710737801758,4790.2933652,0.00015546,2]
[319438502,1710738046644,250.0,0.00014993,2]
[319438503,1710738090508,8750.0,0.00014699,2]
[319438504,1710738090539,9000.0,0.00014699,2]
[319438505,1710738090572,7150.0,0.00014699,2]
[319438506,1710738117558,271.1554492,0.00014609,2]
[319438507,1710738118583,-179.23795265,0.00015527,2]
[319438508,1710738118604,-901.16914859,0.00015527,2]
[319438509,1710738118623,-155.00620025,0.00015528,2]
[319438510,1710738118643,-155.00620025,0.00015529,2]
[319438511,1710738118663,-3225.30829582,0.00015529,2]
[319438512,1710738118683,-429.76227065,0.0001553,2]
[319438513,1710738118702,-3502.87779948,0.0001553,2]
[319438514,1710738118722,-1476.18794127,0.00015531,2]
[319438515,1710738118742,-301.8450875,0.00015532,2]
[319438516,1710738118761,-290.88316788,0.00015532,2]
[319438517,1710738118783,-212.30040266,0.00015533,2]
[319438518,1710738118802,-1608.41114111,0.00015534,2]
[319438519,1710738118823,-12462.00439189,0.00015546,2]
[319438520,1710738167676,-2023.75431578,0.00015545,2]
[319438521,1710738167703,-581.16676106,0.00015545,2]
[319438522,1710738167730,-1786.90273796,0.00015546,2]
[319438523,1710738167756,-1902.27490837,0.00015721,2]
[319438524,1710738167782,-9748.381341,0.00015949,2]
[319438525,1710738233084,-2912.8745733,0.00016566,2]
[319438526,1710738233112,-1782.73799186,0.00016837,2]
[319438527,1710738233137,-2329.984139,0.00017021,2]
[319438528,1710738233163,-1221.01585363,0.00017988,2]
[319438529,1710738233191,-1017.76351187,0.00017991,2]
[319438530,1710738233217,-155.00620025,0.00018,2]
[319438531,1710738233243,-325.57876899,0.00018,2]
[319438532,1710738287422,-1608.41114111,0.00018209,2]
[319438533,1710738287453,-179.23795265,0.00018209,2]
[319438534,1710738287482,-469.50912641,0.0001821,2]
[319438535,1710738287511,-212.30040266,0.00018211,2]
[319438536,1710738287540,-1148.93473,0.00018212,2]
[319438622,1710738635259,-1364.64,0.00018625,2]
[319438623,1710738635273,-659.11431578,0.00018625,2]
[319438624,1710738635283,-581.16676106,0.00018626,2]
[319438625,1710738635293,-469.50912641,0.00018627,2]
[319438626,1710738635303,-212.30040266,0.00018628,2]
[319438627,1710738635314,-15276.09173487,0.00018628,2]
[319438628,1710738635323,-250.0,0.00018631,2]
[319438629,1710738635333,-300.0,0.00018679,2]
[319438630,1710738635342,-24900.0,0.0001868,2]
[319438631,1710738635352,-156.69281171,0.000189,2]
[319438632,1710738635362,-158.441836,0.00019178,2]
[319438633,1710738635371,-166.666666,0.00019178,2]
[319438634,1710738635381,-166.666666,0.00019627,2]
[319438635,1710738635390,-1290.46795069,0.0001989,2]
[319438636,1710738635401,-522.60904816,0.00019892,2]
[319438637,1710738635411,-522.60904816,0.00019894,2]
[319438638,1710738635424,-14106.04184444,0.00019896,2]
[319438639,1710738635434,-522.60904816,0.00019896,2]
[319438640,1710738635444,-1000.0,0.00019897,2]
[319438641,1710738635454,-155.0779996,0.00019898,2]
[319438642,1710738635464,-500.0,0.00019898,2]
[319438643,1710738635474,-500.0,0.00019898,2]
[319438644,1710738635483,-500.0,0.00019898,2]
[319438645,1710738635493,-500.0,0.00019898,2]
[319438646,1710738635505,-500.0,0.00019898,2]
[319438647,1710738635515,-501.57910099,0.00019898,2]
[319438648,1710738635524,-500.0,0.00019898,2]
[319438649,1710738635534,-531.63329424,0.00019898,2]
[319438650,1710738635544,-500.0,0.00019898,2]
[319438651,1710738635554,-500.0,0.00019898,2]
[319438652,1710738635564,-155.29242051,0.00019898,2]
[319438653,1710738635573,-200.0,0.00019898,2]
[319438654,1710738635583,-522.60904816,0.00019898,2]
[319438655,1710738635593,-786.9,0.00019898,2]
[319438656,1710738635603,-786.9,0.00019898,2]
[319438657,1710738635613,-500.0,0.00019898,2]
[319438658,1710738635623,-500.0,0.00019898,2]
[319438659,1710738635634,-500.0,0.00019898,2]
[319438660,1710738635644,-500.0,0.00019898,2]
[319438661,1710738635654,-500.0,0.00019898,2]
[319438662,1710738635664,-500.0,0.00019898,2]
[319438663,1710738635674,-500.0,0.00019898,2]
[319438664,1710738635684,-237.6012861,0.00019898,2]
[319438665,1710738635694,-500.0,0.00019899,2]
[319438666,1710738635703,-500.0,0.00019899,2]
[319438667,1710738635713,-500.0,0.00019899,2]
[319438668,1710738635723,-500.0,0.00019899,2]
[319438669,1710738635733,-268.54603078,0.00019899,2]
[319438670,1710738635743,-500.0,0.00019899,2]
[319438671,1710738635753,-531.3779663,0.00019899,2]
[319438672,1710738635764,-500.0,0.00019899,2]
[319438673,1710738635774,-501.58186076,0.00019899,2]
[319438674,1710738635784,-483.47850922,0.00019899,2]
[319438675,1710738635794,-571.25875255,0.00019899,2]
[319438676,1710738635804,-500.0,0.00019899,2]
[319438677,1710738635816,-500.0,0.00019899,2]
[319438678,1710738635826,-155.59287091,0.000199,2]
[319438679,1710738635837,-691.8576404,0.000199,2]
[319438680,1710738635846,-156.74183684,0.000199,2]
[319438681,1710738635857,-271.14722217,0.000199,2]
[319438783,1710738638100,-212.30040266,0.00018624,2]
[319438784,1710738638109,-251.46182599,0.000199,2]
[319438785,1710738638119,-964.11047608,0.000199,2]
[319438786,1710738638128,-155.31732287,0.00019978,2]
[319438787,1710738638136,-1038.02986836,0.0001998,10]
[319438788,1710738638146,-440.86784977,0.00019991,2]
[319438789,1710738638156,-500.0,0.00019991,2]
[319438790,1710738638166,-500.0,0.00019991,2]
[319438791,1710738638175,-500.0,0.00019991,2]
[319438792,1710738638186,-500.0,0.00019991,2]
[319438793,1710738638195,-896.18,0.00019991,2]
[319438794,1710738638206,-896.18,0.00019991,2]
[319438795,1710738638216,-500.0,0.00019991,2]
[319438796,1710738638225,-500.0,0.00019991,2]
[319438797,1710738638235,-786.9,0.00019991,2]
[319438798,1710738638246,-325.80068184,0.00019991,2]
[319438799,1710738638262,-174.19931816,0.00019991,2]
[319438800,1710738638273,-500.0,0.00019991,2]
[319438801,1710738638283,-500.0,0.00019991,2]
[319438802,1710738638292,-500.0,0.00019991,2]
[319438803,1710738638301,-500.0,0.00019991,2]
[319438804,1710738638310,-500.0,0.00019991,2]
[319438805,1710738638318,-4058.2,0.00019991,2]
[319438806,1710738638327,-4058.2,0.00019991,2]
[319438807,1710738638336,-500.0,0.00019991,2]
[319438808,1710738638347,-946.46223474,0.00019991,2]
[319438809,1710738638359,-141.33776526,0.00019991,2]
[319438810,1710738638369,-1087.8,0.00019991,2]
[319438811,1710738638379,-648.78,0.00019991,2]
[319438812,1710738638389,-648.78,0.00019991,2]
[319438813,1710738638397,-500.0,0.00019991,2]
[319438814,1710738638409,-417.76026271,0.00019991,2]
[319438815,1710738638421,-82.23973729,0.00019991,2]
[319438816,1710738638431,-500.0,0.00019991,2]
[319438817,1710738638441,-500.0,0.00019991,2]
[319438818,1710738638451,-500.0,0.00019991,2]
[319438819,1710738638460,-163.53586683,0.00019991,2]
[319438820,1710738638469,-361.85696395,0.00019992,2]
[319438825,1710738640106,-138.14303605,0.00019992,2]
[319438826,1710738640116,-500.0,0.00019992,2]
[319438827,1710738640125,-500.0,0.00019992,2]
[319438828,1710738640134,-164.6271289,0.00019992,2]
[319438829,1710738640152,-567.22882844,0.00019992,2]
[319438830,1710738640164,-500.0,0.00019992,2]
[319438831,1710738640176,-500.0,0.00019992,2]
[319438832,1710738640187,-500.0,0.00019992,2]
[319438833,1710738640198,-500.0,0.00019992,2]
[319438834,1710738640208,-500.0,0.00019992,2]
[319438835,1710738640219,-500.0,0.00019992,2]
[319438836,1710738640230,-503.68556978,0.00019992,2]
[319438837,1710738640241,-500.0,0.00019992,2]
[319438838,1710738640251,-500.0,0.00019992,2]
[319438839,1710738640263,-500.0,0.00019992,2]
[319438840,1710738640274,-500.0,0.00019992,2]
[319438841,1710738640284,-500.0,0.00019992,2]
[319438842,1710738640295,-500.0,0.00019992,2]
[319438843,1710738640306,-500.0,0.00019992,2]
[319438844,1710738640317,-500.0,0.00019992,2]
[319438845,1710738640328,-503.88853413,0.00019992,2]
[319438846,1710738640338,-595.67,0.00019992,2]
[319438847,1710738640349,-595.67,0.00019992,2]
[319438848,1710738640359,-505.35242514,0.00019992,2]
[319438849,1710738640370,-500.0,0.00019992,2]
[319438850,1710738640381,-500.0,0.00019992,2]
[319438851,1710738640392,-500.0,0.00019992,2]
[319438852,1710738640402,-500.0,0.00019992,2]
[319438853,1710738640412,-500.0,0.00019992,2]
[319438854,1710738640423,-500.0,0.00019992,2]
[319438855,1710738640433,-502.94734742,0.00019992,2]
[319438856,1710738640442,-506.47708507,0.00019992,2]
[319438857,1710738640452,-500.0,0.00019992,2]
[319438858,1710738640462,-500.0,0.00019992,2]
[319438859,1710738640472,-155.32458663,0.00019992,2]
[319438860,1710738640481,-500.0,0.00019992,2]
[319438861,1710738640492,-500.0,0.00019992,2]
[319438862,1710738640502,-502.71512853,0.00019993,2]
[319438863,1710738640514,-500.0,0.00019993,2]
[319438864,1710738640525,-500.0,0.00019993,2]
[319438865,1710738640535,-500.0,0.00019994,2]
[319438866,1710738640545,-896.18,0.00019994,2]
[319438867,1710738640556,-500.0,0.00019994,2]
[319438868,1710738640566,-500.0,0.00019994,2]